bitfinex-derivatives/quotes_ETHF0:USTF0_20250507
["timestamp","ask_amount","ask_price","bid_price","bid_amount"]
[1746599018762,2.77414,1832.2,1832.1,2.27498]
[1746599021463,5.98194,1832.2,1832.1,2.27498]
[1746599039676,5.98194,1832.2,1832.1,3.13008]
[1746599039868,1.09174,1832.2,1832.1,5.85398]
[1746599040063,1.09174,1832.2,1832.1,4.76218]
[1746599041374,1.09174,1832.2,1832.1,5.85398]
[1746599041875,5.27972,1832.3,1832.2,1.09174]
[1746599042177,10.74543487,1832.5,1832.4,1.09162]
[1746599042769,10.74543487,1832.5,1832.4,2.83992]
[1746599045872,6.55643487,1832.5,1832.4,2.83992]
[1746599046477,1.0916,1832.5,1832.4,2.83992]
[1746599054581,1.0916,1832.5,1832.4,1.7483]
[1746599055081,2.7949,1832.5,1832.4,2.83992]
[1746599055280,2.7949,1832.5,1832.4,1.7483]
[1746599055481,1.09174,1832.2,1832.1,3.36677]
[1746599055686,1.09174,1832.2,1832.1,5.94527]
[1746599056282,2.67634,1832.2,1832.1,5.94527]
[1746599062083,2.67634,1832.2,1832.1,5.09077]
[1746599063384,2.67634,1832.2,1832.1,3.99898]
[1746599064786,2.67634,1832.2,1832.1,5.09078]
[1746599065981,2.67634,1832.2,1832.1,3.99898]
[1746599066183,2.67634,1832.2,1832.1,2.27498]
[1746599068883,6.86334,1832.2,1832.1,2.27498]
[1746599069082,11.04834,1832.2,1832.1,2.27498]
[1746599077494,14.25614,1832.2,1832.1,2.27498]
[1746599081299,10.07114,1832.2,1832.1,2.27498]
[1746599081497,8.48654,1832.2,1832.1,5.01698]
[1746599086405,7.3948,1832.2,1832.1,5.01698]
[1746599088205,8.48654,1832.2,1832.1,5.01698]
[1746599088409,7.3948,1832.2,1832.1,5.01698]
[1746599088809,3.2078,1832.2,1832.1,5.01698]
[1746599089015,3.2078,1832.2,1832.1,10.01698]
[1746599089204,3.2078,1832.2,1832.1,5.01698]
[1746599094111,1.09169,1832.3,1832.2,1.09174]
[1746599094311,4.29949,1832.3,1832.2,4.39924]
[1746599094610,3.2078,1832.3,1832.2,4.39924]
[1746599094813,11.02052,1832.5,1832.4,1.09162]
[1746599095308,8.48442,1832.5,1832.4,1.90052]
[1746599095607,7.3928,1832.5,1832.4,1.90052]
[1746599096312,3.2078,1832.5,1832.4,1.90052]
[1746599097718,9.07491487,1832.7,1832.6,1.0915]
[1746599099218,3.61008,1832.7,1832.6,1.0915]
[1746599099404,1.0915,1832.6,1832.5,2.67551]
[1746599099606,3.563,1832.6,1832.5,2.67551]
[1746599100216,2.4715,1832.6,1832.5,2.67551]
[1746599100716,3.563,1832.6,1832.5,2.67551]
[1746599101217,2.4715,1832.6,1832.5,2.67551]
[1746599105021,3.563,1832.6,1832.5,2.67551]
[1746599106413,2.4715,1832.6,1832.4,1.09158]
[1746599106613,1.6032,1832.5,1832.4,1.09158]
[1746599106813,2.69476,1832.5,1832.4,1.09158]
[1746599114919,1.6032,1832.5,1832.4,1.09158]
[1746599115327,5.16076,1832.6,1832.5,1.09156]
[1746599115519,6.90846,1832.6,1832.5,1.09156]
[1746599117422,3.2078,1832.6,1832.5,1.09156]
[1746599117610,4.2993,1832.6,1832.5,2.75656]
[1746599118122,5.153,1832.6,1832.5,2.75656]
[1746599118517,4.0615,1832.6,1832.5,2.75656]
[1746599120225,5.153,1832.6,1832.5,2.75656]
[1746599120827,1.9452,1832.6,1832.5,2.75656]
[1746599125023,3.6405,1832.6,1832.5,2.75656]
[1746599140042,2.7868,1832.6,1832.5,2.75656]
[1746599149444,2.7868,1832.6,1832.5,1.09156]
[1746599153545,1.0916,1832.5,1832.4,1.09158]
[1746599153745,3.6284,1832.5,1832.4,1.09158]
[1746599154548,2.5368,1832.5,1832.4,1.09158]
[1746599155447,9.50623487,1832.7,1832.3,4.48176]
[1746599155647,9.50623487,1832.7,1832.6,1.0915]
[1746599156646,11.09763487,1832.7,1832.6,1.9512]
[1746599157248,7.88983487,1832.7,1832.6,1.9512]
[1746599157451,11.09763487,1832.7,1832.6,1.9512]
[1746599158358,5.6328,1832.7,1832.6,1.9512]
[1746599161658,4.0414,1832.7,1832.6,1.9512]
[1746599163059,5.6765,1832.7,1832.6,1.9512]
[1746599163355,5.6765,1832.7,1832.6,1.0915]
[1746599173162,2.4687,1832.7,1832.6,1.0915]
[1746599173460,5.6765,1832.7,1832.6,1.0915]
[1746599178059,6.76794,1832.7,1832.6,1.0915]
[1746599178259,5.6765,1832.7,1832.6,1.0915]
[1746599181466,5.6765,1832.7,1832.6,1.9665]
[1746599182563,2.4687,1832.7,1832.6,1.9665]
[1746599187066,3.2078,1832.8,1832.7,1.09144]
[1746599187267,5.47632577,1832.9,1832.8,1.09139]
[1746599187468,5.47632577,1832.9,1832.8,1.88319]
[1746599187871,7.06482577,1832.9,1832.8,3.48239]
[1746599190679,1.5885,1832.9,1832.8,3.48239]
[1746599195080,4.058,1833.0,1832.9,1.09133]
[1746599195377,4.058,1833.0,1832.9,2.78793]
[1746599195978,2.605,1833.0,1832.9,2.78793]
[1746599200073,2.605,1833.0,1832.9,1.09133]
[1746599200667,3.69627,1833.0,1832.9,1.09133]
[1746599203773,2.605,1833.0,1832.9,1.09133]
[1746599206982,3.69627,1833.0,1832.9,1.09133]
[1746599207183,2.605,1833.0,1832.9,1.09133]
[1746599207482,3.69627,1833.0,1832.9,1.09133]
[1746599207781,2.605,1833.0,1832.9,1.09133]
[1746599210783,3.69627,1833.0,1832.9,1.09133]
[1746599211987,2.605,1833.0,1832.9,1.09133]
[1746599213088,3.69627,1833.0,1832.9,1.09133]
[1746599217494,6.90407,1833.0,1832.9,1.09133]
[1746599218793,5.8128,1833.0,1832.5,4.0204]
[1746599218989,3.2078,1832.8,1832.5,0.8649]
[1746599219189,1.6837,1832.7,1832.6,1.09149]
[1746599220293,3.2917,1832.7,1832.6,1.09149]
[1746599220593,6.4995,1832.7,1832.6,1.09149]
[1746599220794,7.59094,1832.7,1832.6,1.09149]
[1746599224093,6.4995,1832.7,1832.6,2.82759]
[1746599226001,4.0233,1832.7,1832.6,2.82759]
[1746599228005,5.11474,1832.7,1832.6,2.82759]
[1746599228195,7.55084,1832.7,1832.6,2.82759]
[1746599240608,7.55084,1832.7,1832.6,1.7361]
[1746599240804,7.55084,1832.7,1832.6,2.8276]
[1746599245314,4.34304,1832.7,1832.6,2.8276]
[1746599245511,7.55084,1832.7,1832.6,2.8276]
[1746599247914,1.09162,1832.4,1832.3,1.09167]
[1746599248411,1.09174,1832.2,1832.1,9.54874074]
[1746599248609,4.29954,1832.2,1832.1,9.54874074]
[1746599248913,8.46954,1832.2,1832.1,9.54874074]
[1746599249111,10.19914,1832.2,1832.1,9.54874074]
[1746599252317,10.19914,1832.2,1832.1,2.27498]
[1746599260620,1.09206,1831.7,1831.3,15.94272074]
[1746599260813,3.2078,1831.6,1831.5,2.72616]
[1746599261129,4.2999,1831.6,1831.5,1.634]
[1746599261522,5.9398,1831.6,1831.5,1.634]
[1746599265019,5.9398,1831.6,1831.5,2.72616]
[1746599265822,5.9398,1831.6,1831.5,1.634]
[1746599268526,1.09216,1831.5,1831.4,0.8752]
[1746599268829,1.09216,1831.5,1831.4,2.6171]
[1746599268830,3.50946,1831.5,1831.4,2.6171]
[1746599269026,3.50946,1831.5,1831.4,1.7419]
[1746599269525,4.37746,1831.5,1831.4,1.7419]
[1746599270125,3.2853,1831.5,1830.8,3.2078]
[1746599270428,4.30014,1831.2,1831.1,2.8074]
[1746599270621,4.30014,1831.2,1831.1,1.0924]
[1746599270821,4.30014,1831.2,1831.0,1.0924]
[1746599271021,4.30014,1831.2,1831.1,1.0924]
[1746599271429,4.30014,1831.2,1831.0,1.09241]
[1746599271630,1.0924,1831.1,1831.0,1.09241]
[1746599273431,1.09246,1831.0,1830.9,2.70197]
[1746599274529,1.09246,1831.0,1830.9,1.6095]
[1746599275130,1.09246,1831.0,1830.9,2.70202]
[1746599275627,1.09246,1831.0,1830.9,1.6095]
[1746599275817,1.09246,1831.0,1830.9,2.70202]
[1746599278838,11.14115,1831.1,1831.0,1.09246]
[1746599279041,1.09246,1831.0,1830.9,1.6095]
[1746599279338,1.09246,1831.0,1830.9,2.70202]
[1746599279640,11.14115,1831.1,1831.0,1.09246]
[1746599283039,1.09246,1831.0,1830.9,0.8106]
[1746599283237,1.09252,1830.9,1830.8,1.09255]
[1746599283436,1.94222,1830.9,1830.8,1.09255]
[1746599283737,2.4387,1830.9,1830.8,1.09255]
[1746599284041,3.53122,1830.9,1830.8,1.09255]
[1746599286342,3.53122,1830.9,1830.8,2.81005]
[1746599286743,1.94222,1830.9,1830.8,2.81005]
[1746599287839,0.8497,1830.9,1830.8,2.81005]
[1746599288146,2.75011,1831.0,1830.9,1.09252]
[1746599288347,5.95791,1831.0,1830.9,2.81822]
[1746599289447,2.75011,1831.0,1830.9,2.81822]
[1746599289850,5.95791,1831.0,1830.9,2.81822]
[1746599290242,2.75011,1831.0,1830.9,2.81822]
[1746599290445,5.95791,1831.0,1830.9,2.81822]
[1746599290643,1.09253,1830.9,1830.8,1.09253]
[1746599290943,3.51773,1830.9,1830.8,2.78573]
[1746599292648,1.09259,1830.8,1830.7,1.09258]
[1746599292852,7.69969,1830.8,1830.7,1.09258]
[1746599293048,11.87269,1830.8,1830.7,1.09258]
[1746599293451,1.09264,1830.7,1830.6,1.6932]
[1746599293749,1.09276,1830.5,1830.4,0.7983]
[1746599294049,1.09276,1830.5,1830.4,3.59162]
[1746599294447,3.52016,1830.5,1830.4,3.59162]
[1746599294645,3.52016,1830.5,1830.4,2.4988]
[1746599294846,11.86416,1830.5,1830.4,2.4988]
[1746599295549,11.86416,1830.5,1830.4,3.59162]
[1746599295747,3.52016,1830.5,1830.4,2.4988]
[1746599296053,11.86416,1830.5,1830.4,2.4988]
[1746599296246,11.86416,1830.5,1830.4,1.7005]
[1746599297551,1.09288,1830.3,1830.2,1.93779]
[1746599298044,1.09288,1830.3,1830.2,3.64579]
[1746599298954,2.70336,1830.4,1830.2,3.64579]
[1746599299145,2.70336,1830.4,1830.3,1.708]
[1746599299347,1.09288,1830.3,1830.2,0.8449]
[1746599299545,3.52908,1830.3,1830.2,2.5529]
[1746599300045,3.52908,1830.3,1830.2,3.64584]
[1746599300754,3.52908,1830.3,1830.2,2.5529]
[1746599301256,3.52908,1830.3,1830.2,3.64584]
[1746599301955,2.4362,1830.3,1830.2,3.64584]
[1746599302153,9.43586,1830.4,1830.3,1.09288]
[1746599302355,8.343,1830.4,1830.3,3.60478]
[1746599302654,9.43582,1830.4,1830.3,3.60478]
[1746599303752,9.43582,1830.4,1830.1,3.2078]
[1746599303960,1.09297,1830.2,1829.9,2.5697]
[1746599304152,1.09297,1830.2,1830.1,1.093]
[1746599305358,6.78452,1830.3,1830.2,1.09294]
[1746599305955,6.78452,1830.3,1829.8,2.73288]
[1746599305956,2.73235,1830.2,1829.7,3.2078]
[1746599306260,11.5518,1830.1,1829.7,3.2078]
[1746599306462,1.09311,1830.0,1829.9,1.09311]
[1746599306960,1.09311,1829.9,1829.8,2.69193]
[1746599307160,3.2078,1829.9,1829.4,3.2078]
[1746599307361,3.2078,1829.9,1829.7,1.09321]
[1746599307362,5.26521,1829.8,1829.7,1.09321]
[1746599310062,4.172,1829.8,1829.7,1.09321]
[1746599310461,5.26517,1829.8,1829.7,1.09321]
[1746599311364,4.172,1829.8,1829.7,1.09321]
[1746599311664,6.79336,1829.9,1829.8,1.09317]
[1746599311865,13.47391,1829.9,1829.8,1.09317]
[1746599312764,12.3808,1829.9,1829.8,1.09317]
[1746599313063,12.3818,1829.9,1829.8,1.09317]
[1746599314069,9.174,1829.9,1829.8,1.09317]
[1746599314963,5.94612,1830.1,1829.7,4.40647]
[1746599315165,8.345,1830.0,1829.9,1.09311]
[1746599315357,8.345,1830.0,1829.9,2.76631]
[1746599315661,6.74872,1830.1,1830.0,1.09306]
[1746599315863,3.2078,1830.1,1830.0,2.76626]
[1746599316163,4.3008,1830.1,1830.0,2.76626]
[1746599316558,6.0312,1830.1,1830.0,2.76626]
[1746599317160,2.8234,1830.1,1830.0,2.76626]
[1746599317462,1.09307,1830.0,1829.9,1.09307]
[1746599317662,4.51537,1830.0,1829.9,1.09307]
[1746599318251,3.4223,1830.0,1829.9,1.09307]
[1746599322565,1.09323,1829.8,1829.7,1.09322]
[1746599322879,4.30101,1829.8,1829.7,1.09321]
[1746599323369,5.89861,1829.8,1829.7,1.09321]
[1746599323563,2.69081,1829.8,1829.7,1.09321]
[1746599323764,1.5976,1829.8,1829.7,1.09321]
[1746599324067,2.69077,1829.8,1829.7,1.09321]
[1746599324263,1.09323,1829.7,1829.6,2.70774]
[1746599324464,3.55093,1829.7,1829.6,2.70774]
[1746599324769,1.09335,1829.5,1829.4,4.30117]
[1746599324968,1.09334,1829.6,1829.5,1.09334]
[1746599325870,1.94434,1829.6,1829.5,1.09334]
[1746599326076,3.59894,1829.6,1829.5,1.09334]
[1746599326366,6.80674,1829.6,1829.5,1.09334]
[1746599327275,1.09335,1829.5,1829.4,2.80877]
[1746599327475,2.75585,1829.5,1829.4,2.80877]
[1746599328273,2.75588,1829.5,1829.4,1.09341]
[1746599329477,2.75588,1829.5,1829.3,0.8025]
[1746599329673,0.8222,1829.4,1829.3,1.89597]
[1746599329870,3.2078,1829.6,1829.3,0.8025]
[1746599330075,11.5918,1829.6,1829.5,1.09335]
[1746599330571,11.5918,1829.6,1829.5,2.80865]
[1746599332571,8.384,1829.6,1829.5,2.80865]
[1746599338577,10.0595,1829.6,1829.5,2.80865]
[1746599340587,1.6519,1829.8,1829.7,1.09323]
[1746599341680,3.3725,1829.8,1829.7,2.69383]
[1746599347188,8.384,1829.9,1829.8,1.09317]
[1746599347189,8.382,1829.9,1829.8,1.09317]
[1746599347398,8.382,1829.9,1829.8,2.80587]
[1746599347681,9.47511,1829.9,1829.8,2.80587]
[1746599347891,11.11001,1829.9,1829.8,1.09317]
[1746599348989,10.0169,1829.9,1829.8,1.09317]
[1746599351688,3.2078,1830.0,1829.9,1.09311]
[1746599352089,3.2078,1830.0,1829.9,3.66121]
[1746599353593,4.4237,1830.1,1830.0,1.09306]
[1746599353794,3.3307,1830.1,1830.0,1.09306]
[1746599353996,7.5177,1830.1,1830.0,2.79446]
[1746599354193,3.3307,1830.1,1830.0,2.79446]
[1746599355593,2.4612,1830.1,1830.0,2.79446]
[1746599356184,0.7945,1830.1,1830.0,2.79446]
[1746599358002,2.4216,1830.1,1830.0,2.79446]
[1746599359698,7.3998,1830.2,1830.1,1.093]
[1746599359897,7.3998,1830.2,1830.1,3.606]
[1746599360198,4.192,1830.2,1830.1,3.606]
[1746599360695,2.438,1830.3,1830.2,1.09294]
[1746599360999,1.6271,1830.3,1830.2,2.78084]
[1746599361391,2.438,1830.3,1830.2,2.78084]
[1746599361595,2.438,1830.3,1830.2,1.09294]
[1746599366404,2.438,1830.3,1830.2,1.96444]
[1746599366608,2.438,1830.3,1830.2,1.09294]
[1746599367905,1.6271,1830.3,1830.2,1.09294]
[1746599368106,1.6271,1830.3,1830.2,1.96444]
[1746599370309,1.6271,1830.3,1830.2,1.09294]
[1746599370807,8.2417,1830.4,1830.3,1.09288]
[1746599371008,9.9934,1830.4,1830.3,1.09288]
[1746599373516,6.7856,1830.4,1830.3,1.09288]
[1746599377611,5.9347,1830.4,1830.3,2.74278]
[1746599378510,6.8017,1830.4,1830.3,2.74278]
[1746599378699,6.8017,1830.4,1830.3,1.09288]
[1746599380305,2.6187,1830.4,1830.3,1.09288]
[1746599380501,1.7517,1830.4,1830.3,2.79088]
[1746599391521,1.7517,1830.4,1830.3,1.09288]
[1746599393115,5.9247,1830.4,1830.3,1.09288]
[1746599397426,5.9247,1830.4,1830.0,1.98602]
[1746599397624,1.09311,1829.9,1829.8,7.27376074]
[1746599397826,11.6148,1829.9,1829.8,7.27376074]
[1746599398132,11.6148,1829.9,1829.8,8.36693074]
[1746599398326,12.70791,1829.9,1829.8,7.27376074]
[1746599398627,14.41881,1829.9,1829.8,7.27376074]
[1746599398827,14.41881,1829.9,1829.8,10.91704201]
[1746599399728,13.3287,1829.9,1829.8,10.91704201]
[1746599399943,14.42181,1829.9,1829.8,10.91704201]
[1746599400229,13.3287,1829.9,1829.8,10.91704201]
[1746599400527,14.42181,1829.9,1829.8,10.91704201]
[1746599401029,13.3287,1829.9,1829.8,12.01021201]
[1746599401227,7.3818,1829.9,1829.8,13.67391201]
[1746599401423,8.47491,1829.9,1829.8,12.58074201]
[1746599401629,10.08341,1829.9,1829.8,10.91704201]
[1746599402331,10.08341,1829.9,1829.7,1.09319]
[1746599402524,1.6085,1829.8,1829.7,1.09319]
[1746599402723,2.70167,1829.8,1829.6,2.75695]
[1746599402924,5.94355,1829.7,1829.6,1.09329]
[1746599403127,7.55205,1829.7,1829.6,1.09329]
[1746599403333,7.55205,1829.7,1829.5,1.09331]
[1746599403531,1.6472,1829.6,1829.5,1.09335]
[1746599405634,4.855,1829.6,1829.5,1.09335]
[1746599407037,5.94829,1829.6,1829.5,1.09335]
[1746599407530,1.09335,1829.5,1829.4,2.75709]
[1746599407837,1.6451,1829.5,1829.4,2.75709]
[1746599412939,4.8529,1829.5,1829.4,2.75709]
[1746599414142,5.94625,1829.5,1829.4,1.09339]
[1746599414641,4.8529,1829.5,1829.4,1.09339]
[1746599415342,5.94625,1829.5,1829.4,1.09339]
[1746599415542,4.8529,1829.5,1829.4,2.71189]
[1746599416442,5.94625,1829.5,1829.4,2.71189]
[1746599417143,5.94625,1829.5,1829.4,1.09339]
[1746599419943,5.94625,1829.5,1829.4,2.79169]
[1746599421146,4.8529,1829.5,1829.1,2.73399]
[1746599421443,3.3807,1829.4,1829.2,1.6983]
[1746599421645,5.99547,1829.3,1829.2,2.79183]
[1746599421845,5.99547,1829.3,1829.2,1.6983]
[1746599422148,3.2078,1829.3,1829.2,2.79183]
[1746599424743,3.2078,1829.3,1829.1,1.09354]
[1746599424935,3.2078,1829.3,1829.0,1.666]
[1746599424936,1.09359,1829.1,1829.0,4.4005]
[1746599425137,4.30139,1829.1,1829.0,3.6024]
[1746599425344,1.09365,1829.0,1828.9,1.09367]
[1746599425547,1.7342,1829.0,1828.9,1.09367]
[1746599425839,1.7342,1829.0,1828.9,2.73457]
[1746599427045,7.04885,1829.0,1828.9,1.09367]
[1746599427251,5.9552,1829.0,1828.9,1.09367]
[1746599427550,4.221,1829.0,1828.9,1.09367]
[1746599428249,5.8784,1829.0,1828.9,1.09367]
[1746599428946,6.97205,1829.0,1828.8,1.6409]
[1746599429243,1.09381,1828.8,1828.7,1.09383]
[1746599429651,3.54961,1828.8,1828.7,1.09383]
[1746599429955,2.4558,1828.8,1828.6,2.81725]
[1746599430252,4.8652,1828.7,1828.6,2.81729]
[1746599430546,5.95903,1828.7,1828.6,1.7234]
[1746599430746,1.09389,1828.6,1828.5,1.92301]
[1746599430946,2.429,1828.6,1828.5,1.92301]
[1746599431343,2.429,1828.6,1828.5,1.09391]
[1746599431749,3.52289,1828.6,1828.5,1.09391]
[1746599432655,7.75689,1828.6,1828.5,1.09391]
[1746599433646,6.663,1828.6,1828.4,2.79107]
[1746599433851,4.8323,1828.5,1828.4,2.79107]
[1746599434447,5.6678,1828.5,1828.4,2.79107]
[1746599435855,6.76175,1828.5,1828.4,1.09397]
[1746599436453,5.6678,1828.5,1828.4,1.09397]
[1746599439055,6.76175,1828.5,1828.4,1.09397]
[1746599439253,5.6678,1828.5,1828.4,1.09397]
[1746599439453,5.6678,1828.5,1828.4,2.68737]
[1746599443248,2.46,1828.5,1828.4,2.68737]
[1746599443544,5.6678,1828.5,1828.4,2.68737]
[1746599443750,4.0433,1828.5,1828.4,2.68737]
[1746599444257,3.2078,1828.5,1828.4,2.68737]
[1746599449664,3.2078,1828.5,1828.4,7.68737]
[1746599450064,3.2078,1828.5,1828.4,2.68737]
[1746599450665,7.4288,1828.7,1828.6,1.09389]
[1746599451066,7.4288,1828.7,1828.6,3.63199]
[1746599453462,7.4288,1828.7,1828.6,1.09389]
[1746599453666,9.0117,1828.7,1828.6,1.09389]
[1746599457467,10.10556,1828.7,1828.5,1.09392]
[1746599457669,1.6935,1828.6,1828.5,1.09392]
[1746599458970,5.9215,1828.6,1828.5,1.09392]
[1746599462375,7.01541,1828.6,1828.4,1.09397]
[1746599462567,6.4302,1828.5,1828.4,1.09397]
[1746599465870,1.09402,1828.4,1828.0,2.73563]
[1746599466074,1.7414,1828.4,1828.3,1.09403]
[1746599466377,4.9492,1828.4,1828.3,1.09403]
[1746599466571,9.1662,1828.4,1828.3,1.09403]
[1746599468374,7.4248,1828.4,1828.3,1.88593]
[1746599468771,7.4248,1828.4,1828.3,3.53473]
[1746599469471,3.2078,1828.4,1828.3,3.53473]
[1746599470879,10.33832577,1828.8,1828.7,1.09383]
[1746599471078,5.47632577,1828.8,1828.7,1.09383]
[1746599471266,5.47632577,1828.8,1828.7,6.09383]
[1746599471674,5.47632577,1828.8,1828.7,7.74513]
[1746599473083,5.47632577,1828.8,1828.7,2.74513]
[1746599473386,3.2078,1829.0,1828.9,1.09371]
[1746599473771,3.2078,1829.0,1828.9,1.92741]
[1746599474985,5.6816,1829.2,1829.1,1.09359]
[1746599475483,2.4738,1829.2,1829.1,1.09359]
[1746599475691,5.6816,1829.2,1829.1,2.76729]
[1746599476388,4.0751,1829.2,1829.1,2.76729]
[1746599477584,4.0751,1829.2,1829.1,1.09359]
[1746599478791,5.16863,1829.2,1829.1,1.09359]
[1746599478985,6.92543,1829.2,1829.1,1.09359]
[1746599481091,5.8319,1829.2,1829.1,1.09359]
[1746599484892,6.92543,1829.2,1829.1,1.09359]
[1746599485091,6.92543,1829.2,1829.0,1.7115]
[1746599485092,1.09359,1829.1,1829.0,1.09361]
[1746599485390,3.63729,1829.1,1829.0,1.09361]
[1746599485995,2.5437,1829.1,1829.0,1.09361]
[1746599486389,3.63729,1829.1,1829.0,1.09361]
[1746599486790,11.7837,1829.1,1828.4,10.01682946]
[1746599486992,1.09376,1828.9,1828.8,1.09376]
[1746599487187,8.54856,1828.9,1828.8,1.09376]
[1746599487389,9.42306,1828.9,1828.8,1.09376]
[1746599490400,8.3293,1828.9,1828.8,1.09376]
[1746599490600,4.0823,1828.9,1828.8,1.09376]
[1746599490901,4.0823,1828.9,1828.8,2.68016]
[1746599491991,5.7706,1828.9,1828.8,2.68016]
[1746599492192,5.7706,1828.9,1828.8,1.09376]
[1746599495600,6.86431,1828.9,1828.8,1.09376]
[1746599495805,1.09377,1828.8,1828.7,1.09379]
[1746599496098,2.5503,1828.8,1828.7,1.09379]
[1746599497804,2.5503,1828.8,1828.7,1.89099]
[1746599498406,3.64407,1828.8,1828.7,1.09379]
[1746599498599,2.5503,1828.8,1828.7,1.09379]
[1746599501500,5.17606,1828.9,1828.7,1.09379]
[1746599501706,4.0823,1828.9,1828.8,2.72527]
[1746599504403,3.2078,1828.9,1828.8,2.72527]
[1746599507003,4.0168,1829.2,1829.1,1.09359]
[1746599507807,4.0168,1829.2,1829.1,2.81649]
[1746599508509,3.2078,1829.2,1829.1,2.81649]
[1746599510512,5.8913,1829.3,1829.2,1.09353]
[1746599510711,9.0991,1829.3,1829.2,2.83533]
[1746599511206,5.8913,1829.3,1829.2,2.83533]
[1746599511811,9.0991,1829.3,1829.2,2.83533]
[1746599514014,7.4478,1829.3,1829.2,2.83533]
[1746599515005,9.1877,1829.3,1829.2,2.83533]
[1746599520822,7.4478,1829.3,1829.2,2.83533]
[1746599524412,4.24,1829.3,1829.2,2.83533]
[1746599525011,4.0489,1829.5,1829.4,1.09341]
[1746599525617,5.7483,1829.5,1829.4,1.09341]
[1746599527818,5.7483,1829.5,1829.4,2.84261]
[1746599528316,5.47632577,1829.8,1829.5,1.09335]
[1746599528617,2.4728,1829.7,1829.6,1.09329]
[1746599529017,2.4728,1829.7,1829.6,2.69209]
[1746599530821,2.4728,1829.7,1829.6,3.54879]
[1746599535427,0.8319,1829.7,1829.6,3.54879]
[1746599535723,0.8207,1829.8,1829.7,1.09323]
[1746599536019,2.5197,1829.9,1829.8,1.09317]
[1746599536216,3.3291,1829.9,1829.8,1.09317]
[1746599537427,3.3291,1829.9,1829.8,2.84057]
[1746599537821,1.09324,1829.8,1829.7,1.0932]
[1746599538021,5.92314,1829.8,1829.7,1.0932]
[1746599538921,5.92307,1829.8,1829.7,1.0932]
[1746599539119,9.8299,1829.8,1829.3,3.57336]
[1746599539324,3.2078,1829.4,1829.3,1.09347]
[1746599540317,1.6221,1829.4,1829.3,1.09347]
[1746599540718,1.6221,1829.4,1829.3,2.77257]
[1746599542225,1.6276,1829.5,1829.4,1.09341]
[1746599542426,1.6276,1829.5,1829.4,2.77251]
[1746599543025,3.2415,1829.5,1829.4,2.77251]
[1746599548216,0.8024,1829.5,1829.4,2.77251]
[1746599548416,4.227,1829.7,1829.6,1.09329]
[1746599548627,5.8767,1829.7,1829.6,1.09329]
[1746599549626,6.7447,1829.7,1829.6,1.09329]
[1746599552019,6.7447,1829.7,1829.6,1.92929]
[1746599555529,4.227,1829.7,1829.6,1.92929]
[1746599556127,3.2078,1829.8,1829.7,1.09323]
[1746599556329,3.2078,1829.8,1829.7,2.69193]
[1746599557233,3.2714,1829.9,1829.8,1.09317]
[1746599561436,4.36451,1829.9,1829.8,1.09317]
[1746599561744,8.2714,1829.9,1829.4,7.28192946]
[1746599561945,3.2078,1829.6,1829.5,1.09332]
[1746599562336,6.5729,1829.6,1829.5,1.09332]
[1746599563445,7.66619,1829.6,1829.5,1.09332]
[1746599566349,6.5729,1829.6,1829.5,1.09332]
[1746599569356,7.66619,1829.6,1829.5,1.09332]
[1746599579961,4.45839,1829.6,1829.5,1.09332]
[1746599580162,7.66619,1829.6,1829.5,1.09332]
[1746599580859,6.5729,1829.6,1829.3,1.6045]
[1746599581068,3.2078,1829.4,1828.9,7.28192946]
[1746599581259,1.09359,1829.2,1829.1,1.09358]
[1746599581757,5.9487,1829.2,1828.9,7.28192946]
[1746599582061,4.30145,1829.0,1828.9,7.28192946]
[1746599582666,5.13095,1829.0,1828.9,7.28192946]
[1746599585367,1.09377,1828.9,1828.7,1.09381]
[1746599585567,7.4048,1828.8,1828.7,1.09381]
[1746599586365,9.0564,1828.8,1828.7,1.09381]
[1746599587965,10.15017,1828.8,1828.7,1.09381]
[1746599588168,9.0564,1828.8,1828.7,1.09381]
[1746599588768,10.15017,1828.8,1828.7,1.09381]
[1746599591267,9.0564,1828.8,1828.7,1.09381]
[1746599591566,7.4048,1828.8,1828.7,1.09381]
[1746599591768,4.197,1828.8,1828.7,1.09381]
[1746599592466,8.49857,1828.8,1828.7,1.09381]
[1746599593167,7.4048,1828.8,1828.7,1.09381]
[1746599594370,8.49857,1828.8,1828.7,1.09381]
[1746599594665,7.4048,1828.8,1828.7,1.09381]
[1746599595168,4.197,1828.8,1828.7,1.09381]
[1746599595367,7.4048,1828.8,1828.7,1.09381]
[1746599596068,8.49857,1828.8,1828.7,1.09381]
[1746599596970,7.4048,1828.8,1828.7,1.09381]
[1746599597165,8.49857,1828.8,1828.7,1.09381]
[1746599597663,11.83007,1828.8,1828.7,1.09381]
[1746599601969,9.30337,1828.8,1828.7,1.09381]
[1746599602479,7.4048,1828.8,1828.7,1.09381]
[1746599602673,7.4048,1828.8,1828.7,1.96741]
[1746599602969,8.49857,1828.8,1828.7,1.96741]
[1746599603468,3.2078,1828.8,1828.7,1.96741]
[1746599603663,3.2078,1829.1,1829.0,1.09365]
[1746599604764,4.8204,1829.1,1829.0,1.09365]
[1746599605371,3.2078,1829.1,1829.0,1.09365]
[1746599605969,3.2078,1829.1,1829.0,1.96965]
[1746599606969,3.2078,1829.1,1829.0,1.09365]
[1746599607272,6.73889,1829.1,1829.0,1.09365]
[1746599608074,5.6453,1829.1,1829.0,1.09365]